fUST/lending_fUST_20250406
["ID","MTS","AMOUNT","RATE_DAILY","PERIOD"]
[357221982,1743918646958,-500.0,0.00021917,2]
[357221983,1743918646969,-500.0,0.00021917,2]
[357221984,1743918646978,-351.308967,0.00021917,2]
[357221985,1743918646988,-351.308967,0.00021917,2]
[357221986,1743918646997,-500.0,0.00021917,2]
[357221987,1743918647009,-351.308967,0.00021917,2]
[357221988,1743918647019,-351.308967,0.00021917,2]
[357221989,1743918647028,-351.308967,0.00021917,2]
[357221990,1743918647038,-351.308967,0.00021917,2]
[357221991,1743918647048,-500.0,0.00021917,2]
[357221992,1743918647058,-351.308967,0.00021917,2]
[357221993,1743918647068,-500.0,0.00021917,2]
[357221994,1743918647077,-500.0,0.00021917,2]
[357221995,1743918647086,-535.10964681,0.00021917,2]
[357221996,1743918647096,-500.0,0.00021917,2]
[357221997,1743918647105,-500.0,0.00021917,2]
[357221998,1743918647114,-500.0,0.00021917,2]
[357221999,1743918647123,-500.0,0.00021917,2]
[357222000,1743918647133,-533.63518212,0.00021917,2]
[357222001,1743918647142,-500.0,0.00021917,2]
[357222002,1743918647152,-500.0,0.00021917,2]
[357222003,1743918647161,-248.37417256,0.00021917,2]
[357222004,1743918647170,-500.0,0.00021917,2]
[357222005,1743918647179,-500.0,0.00021917,2]
[357222006,1743918647189,-311.003698,0.00021917,2]
[357222007,1743918647198,-311.003698,0.00021917,2]
[357222008,1743918647207,-311.003698,0.00021917,2]
[357222009,1743918647219,-500.0,0.00021917,2]
[357222010,1743918647228,-500.0,0.00021917,2]
[357222011,1743918647238,-311.003698,0.00021917,2]
[357222012,1743918647247,-311.003698,0.00021917,2]
[357222013,1743918647258,-311.003698,0.00021917,2]
[357222014,1743918647267,-500.0,0.00021917,2]
[357222015,1743918647277,-500.0,0.00021917,2]
[357222016,1743918647286,-500.0,0.00021917,2]
[357222017,1743918647296,-500.0,0.00021917,2]
[357222018,1743918647305,-500.0,0.00021917,2]
[357222019,1743918647314,-311.003698,0.00021917,2]
[357222020,1743918647323,-311.003698,0.00021917,2]
[357222021,1743918647332,-500.0,0.00021917,2]
[357222022,1743918647343,-311.003698,0.00021917,2]
[357222023,1743918647352,-500.0,0.00021917,2]
[357222024,1743918647361,-311.003698,0.00021917,2]
[357222025,1743918647371,-311.003698,0.00021917,2]
[357222026,1743918647381,-311.003698,0.00021917,2]
[357222027,1743918647390,-500.0,0.00021917,2]
[357222028,1743918647400,-500.0,0.00021917,2]
[357222029,1743918647409,-500.0,0.00021917,2]
[357222030,1743918647418,-500.0,0.00021917,2]
[357222031,1743918647427,-500.0,0.00021917,2]
[357222032,1743918647437,-500.0,0.00021917,2]
[357222033,1743918647446,-500.0,0.00021917,2]
[357222034,1743918647454,-500.0,0.00021917,2]
[357222035,1743918647464,-500.0,0.00021917,2]
[357222036,1743918647473,-151.0,0.00021917,2]
[357222037,1743918647482,-151.0,0.00021917,2]
[357222038,1743918647492,-151.0,0.00021917,2]
[357222039,1743918647501,-500.0,0.00021973,2]
[357222040,1743918647510,-500.0,0.00021973,2]
[357222041,1743918647519,-500.0,0.00021973,2]
[357222042,1743918647528,-500.0,0.00021973,2]
[357222043,1743918647538,-500.0,0.00021973,2]
[357222044,1743918647547,-500.0,0.00021973,2]
[357222045,1743918647557,-500.0,0.00021973,2]
[357222046,1743918647566,-500.0,0.00021973,2]
[357222047,1743918647576,-500.0,0.00021973,2]
[357222048,1743918647585,-500.0,0.00021973,2]
[357222049,1743918647599,-500.0,0.00021973,2]
[357222050,1743918647609,-500.0,0.00021973,2]
[357222051,1743918647618,-500.0,0.00021973,2]
[357222052,1743918647627,-500.0,0.00021973,2]
[357222053,1743918647637,-151.0,0.00021973,7]
[357222054,1743918647647,-633.479224,0.00021973,2]
[357222055,1743918647657,-633.479224,0.00021973,2]
[357222056,1743918647666,-351.308967,0.00021973,7]
[357222057,1743918647675,-351.308967,0.00021973,7]
[357222058,1743918647684,-311.003698,0.00021973,7]
[357222059,1743918647694,-311.003698,0.00021973,7]
[357222060,1743918647703,-151.0,0.0002199,7]
[357222061,1743918647712,-225.000092,0.0002199,7]
[357222062,1743918647722,-225.000092,0.0002199,7]
[357222063,1743918647731,-151.0,0.0002199,7]
[357222064,1743918647740,-359.7842396,0.00022,2]
[357222065,1743918647750,-359.7842396,0.00022,2]
[357222066,1743918647759,-359.7842396,0.00022,2]
[357222067,1743918647768,-323.7480083,0.00022,2]
[357222068,1743918647777,-312.8956434,0.00022,2]
[357222069,1743918647786,-154.1147527,0.00022078,2]
[357222070,1743918647795,-359.7842396,0.000221,2]
[357222071,1743918647804,-359.5753439,0.000221,2]
[357222072,1743918647813,-426.1949654,0.000221,2]
[357222073,1743918647823,-204.5211149,0.000221,2]
[357222074,1743918647831,-153.0,0.000221,2]
[357222075,1743918647841,-500.0,0.00022191,2]
[357222076,1743918647850,-567.25418416,0.00022191,2]
[357222077,1743918647859,-151.0,0.00022191,7]
[357222078,1743918647869,-503.7625955,0.00022191,2]
[357222079,1743918647878,-231.46438945,0.00022191,2]
[357222080,1743918647970,-523.43,0.00022191,2]
[357222081,1743918647981,-500.0,0.00022191,2]
[357222082,1743918647990,-500.0,0.00022191,2]
[357222083,1743918647999,-500.0,0.00022191,2]
[357222084,1743918648010,-500.0,0.00022191,2]
[357222085,1743918648020,-359.7842396,0.000222,2]
[357222086,1743918648029,-359.7842396,0.000222,2]
[357222087,1743918648038,-359.7842396,0.000222,2]
[357222088,1743918648048,-359.7842396,0.000222,2]
[357222089,1743918648057,-359.7842396,0.000224,2]
[357222090,1743918648066,-153.0,0.00022438,2]
[357222091,1743918648076,-156.5843743,0.00022438,2]
[357222092,1743918648085,-156.5843743,0.00022438,2]
[357222093,1743918648094,-153.0,0.00022438,2]
[357222094,1743918648105,-153.0,0.00022438,2]
[357222095,1743918648114,-156.5843743,0.00022438,2]
[357222096,1743918648124,-153.0,0.00022438,2]
[357222097,1743918648134,-156.5843743,0.00022438,2]
[357222098,1743918648144,-151.0,0.00022465,7]
[357222099,1743918648154,-223.12286169,0.00022465,2]
[357222100,1743918648163,-151.0,0.00022465,7]
[357222101,1743918648173,-151.0,0.00022465,7]
[357222102,1743918648184,-557.322284,0.00022465,7]
[357222103,1743918648194,-557.322284,0.00022465,7]
[357222104,1743918648203,-500.0,0.00022465,2]
[357222105,1743918648213,-500.0,0.00022465,2]
[357222106,1743918648223,-4148.30172999,0.00022521,4]
[357222107,1743918648233,-239.104312,0.00022739,7]
[357222108,1743918648243,-500.0,0.00022739,2]
[357222109,1743918648252,-500.0,0.00022739,2]
[357222110,1743918648263,-633.479224,0.00022739,2]
[357222111,1743918648272,-633.479224,0.00022739,2]
[357222112,1743918648282,-351.308967,0.00022739,7]
[357222113,1743918648292,-351.308967,0.00022739,7]
[357222114,1743918648302,-151.0,0.00022813,7]
[357222115,1743918648312,-311.003698,0.00022813,7]
[357222116,1743918648321,-311.003698,0.00022813,7]
[357222117,1743918648331,-160.0,0.00022886,2]
[357222118,1743918648341,-419.28457398,0.00022886,2]
[357222119,1743918648350,-390.3661519,0.00022912,2]
[357222120,1743918648360,-456.0278339,0.00022912,2]
[357222121,1743918648369,-179.90984559,0.00022912,2]
[357222122,1743918648378,-224.91553249,0.00022912,2]
[357222123,1743918648388,-151.0,0.00022913,7]
[357222124,1743918648398,-151.0,0.00022913,7]
[357222125,1743918648407,-225.000092,0.00022913,7]
[357222126,1743918648417,-225.000092,0.00022913,7]
[357222127,1743918648427,-151.0,0.00022913,7]
[357222128,1743918648437,-185.600127,0.00022913,7]
[357222129,1743918648447,-3000.0,0.00023,2]
[357222130,1743918648456,-151.0,0.00023,7]
[357222131,1743918648465,-151.0,0.00023,7]
[357222132,1743918648475,-557.322284,0.00023,7]
[357222133,1743918648485,-557.322284,0.00023,7]
[357222134,1743918648495,-3000.0,0.0002301,2]
[357222135,1743918648505,-500.0,0.00023013,2]
[357222136,1743918648515,-500.0,0.00023013,2]
[357222137,1743918648525,-3000.0,0.0002302,2]
[357222138,1743918648536,-633.479224,0.0002302,2]
[357222139,1743918648546,-633.47922248,0.0002302,2]
[357222140,1743918648555,-351.308967,0.0002302,7]
[357222141,1743918648564,-351.308968,0.0002302,7]
[357222142,1743918648574,-3000.0,0.0002303,2]
[357222143,1743918648583,-3000.0,0.0002304,2]
[357222144,1743918648593,-151.0,0.0002304,7]
[357222145,1743918648603,-311.003698,0.0002304,7]
[357222146,1743918648613,-135.53821163,0.0002304,7]
[357222147,1743918946120,269.5895386,0.00013699,2]
[357222150,1743919105880,-198.900153,0.00020937,2]
[357222155,1743919542136,-1339.74720515,0.00021817,2]
[357222156,1743919542156,-161.1164057,0.00021904,2]
[357222157,1743919555303,-241.39101395,0.00021005,2]
[357222158,1743919624780,738.562744,0.00023,10]
[357222159,1743919644695,-191.51403587,0.0002,3]
[357222160,1743919653124,-1654.68403757,0.0002,3]
[357222161,1743919655550,-159.5185218,0.0002,3]
[357222162,1743919715353,-155.06541874,0.00019999,2]
[357222163,1743919726725,-155.06541874,0.0001999,3]
[357222164,1743919754126,-249.37458126,0.0001999,3]
[357222165,1743919754150,-344.93458126,0.00019999,2]
[357222166,1743919754174,-500.0,0.00019999,2]
[357222167,1743919754196,-500.0,0.00019999,2]
[357222168,1743919754220,-500.0,0.00019999,2]
[357222169,1743919754243,-378.71747963,0.00019999,2]
[357222170,1743919754266,-500.0,0.00019999,2]
[357222171,1743919754287,-116208.77322048,0.0002,3]
[357222172,1743919754942,-500.0,0.0002,3]
[357222173,1743919756125,-181.43220108,0.0002,3]
[357222174,1743919761110,-1497.90602152,0.0002,3]
[357222175,1743919762096,-167.67538393,0.0002,3]
[357222200,1743919832880,-95.69289885,0.00021005,2]
[357222201,1743919832890,-234.11208449,0.00021817,2]
[357222208,1743919838553,-649.88167394,0.00021817,2]
[357222209,1743919838609,-402.02761189,0.00021817,2]
[357222210,1743919838619,-107.97238811,0.00021904,2]
[357222217,1743919843713,-92.02761189,0.00021904,2]
[357222218,1743919843724,-747.06423553,0.00021908,2]
[357222219,1743919843771,-1335.21687471,0.00021908,2]
[357222222,1743919846816,-6801.03735258,0.00021908,2]
[357222223,1743919846826,-298.06817748,0.00021908,2]
[357222224,1743919846871,-121.2163965,0.00021908,2]
[357222225,1743919846881,-505.03558851,0.00021917,2]
[357222226,1743919846890,-584.43229241,0.00021917,2]
[357222227,1743919846900,-500.0,0.00021917,2]
[357222228,1743919846909,-200.0,0.00021917,2]
[357222229,1743919846919,-480.86307173,0.00021917,2]
[357222230,1743919846929,-500.0,0.00021917,2]
[357222231,1743919846938,-500.0,0.00021917,2]
[357222232,1743919846948,-500.0,0.00021917,2]
[357222233,1743919846957,-500.0,0.00021917,2]
[357222234,1743919846966,-500.0,0.00021917,2]
[357222235,1743919846975,-500.0,0.00021917,2]
[357222236,1743919846984,-500.0,0.00021917,2]
[357222237,1743919846994,-500.0,0.00021917,2]
[357222238,1743919847003,-500.0,0.00021917,2]
[357222239,1743919847012,-500.0,0.00021917,2]
[357222240,1743919847021,-429.70436338,0.00021917,2]
[357222241,1743919847033,-70.29563662,0.00021917,2]
[357222242,1743919847042,-500.0,0.00021917,2]
[357222243,1743919847052,-500.0,0.00021917,2]
[357222244,1743919847061,-500.0,0.00021917,2]
[357222245,1743919847071,-500.0,0.00021917,2]
[357222246,1743919847080,-500.0,0.00021917,2]
[357222247,1743919847090,-520.96989407,0.00021917,2]
[357222248,1743919847099,-500.0,0.00021917,2]
[357222249,1743919847108,-513.66797243,0.00021917,2]
[357222250,1743919847117,-500.0,0.00021917,2]
[357222251,1743919847126,-500.0,0.00021917,2]
[357222252,1743919847136,-500.0,0.00021917,2]
[357222253,1743919847145,-500.0,0.00021917,2]
[357222254,1743919847154,-500.0,0.00021917,2]
[357222255,1743919847163,-500.0,0.00021917,2]
[357222256,1743919847173,-500.0,0.00021917,2]
[357222257,1743919847183,-500.0,0.00021917,2]
[357222258,1743919847192,-500.0,0.00021917,2]
[357222259,1743919847203,-500.0,0.00021917,2]
[357222260,1743919847212,-500.0,0.00021917,2]
[357222261,1743919847222,-500.0,0.00021917,2]
[357222262,1743919847232,-500.0,0.00021917,2]
[357222263,1743919847241,-500.0,0.00021917,2]
[357222264,1743919847251,-500.0,0.00021917,2]
[357222265,1743919847260,-500.0,0.00021917,2]
[357222266,1743919847270,-500.0,0.00021917,2]
[357222267,1743919847280,-500.0,0.00021917,2]
[357222268,1743919847290,-500.0,0.00021917,2]
[357222269,1743919847299,-500.0,0.00021917,2]
[357222270,1743919847309,-500.0,0.00021917,2]
[357222271,1743919847318,-500.0,0.00021917,2]
[357222272,1743919847328,-500.0,0.00021917,2]
[357222273,1743919847338,-500.0,0.00021917,2]
[357222274,1743919847347,-500.0,0.00021917,2]
[357222275,1743919847357,-2144.3,0.00021917,2]
[357222276,1743919847367,-511.06104233,0.00021917,2]
[357222297,1743920627953,-841.3755558,0.00020924,2]
[357222301,1743920755139,-292.2883,0.00021006,2]
[357222302,1743920755160,-262.59568135,0.00021677,2]
[357222303,1743920755344,-264.30194218,0.00021916,2]
[357222304,1743920755374,-253.0,0.00021916,2]
[357222305,1743920755395,-2473.11511126,0.00021917,2]
[357222308,1743920837076,-511.0,0.00021,2]
[357222309,1743920837097,-169.58314521,0.00021817,2]
[357222310,1743920851178,-1133.24003821,0.00021817,2]
[357222311,1743920851198,-500.0,0.00021917,2]
[357222312,1743920851217,-4299.0054826,0.00021917,2]
[357222313,1743920851237,-236.6019253,0.00021917,2]
[357222314,1743920851258,-500.0,0.00021917,2]
[357222315,1743920851279,-500.0,0.00021917,2]
[357222316,1743920851299,-510.17494046,0.00021917,2]
[357222317,1743920851320,-504.88712753,0.00021917,2]
[357222318,1743920851339,-500.0,0.00021917,2]
[357222319,1743920851360,-347.44251837,0.00021917,2]
[357222325,1743920911313,-415.88318974,0.00017987,2]
[357222336,1743920959109,-205.08272796,0.00017987,2]
[357222337,1743920959131,-8811.48234766,0.00021116,2]
[357222356,1743921009281,324.0,0.0002,90]
[357222371,1743921031912,-184.65150374,0.00021116,2]
[357222372,1743921031922,-641.04713627,0.000217,5]
[357222373,1743921031973,-2524.52286373,0.000217,5]
[357222374,1743921031983,-1139.97028544,0.00021817,2]
[357222375,1743921031995,-4092.82685901,0.000219,3]
[357222376,1743921032005,-200.0,0.00021904,2]
[357222377,1743921032133,-500.0,0.00021917,2]
[357222378,1743921032148,-152.55748163,0.00021917,2]
[357222379,1743921032157,-432.17495078,0.00021917,2]
[357222380,1743921032169,-67.82504922,0.00021917,2]
[357222381,1743921032179,-453.79210192,0.00021917,2]
[357222402,1743921037780,-46.20789808,0.00021917,2]
[357222404,1743921037790,-500.0,0.00021917,2]
[357222406,1743921037800,-500.0,0.00021917,2]
[357222408,1743921037810,-500.0,0.00021917,2]
[357222410,1743921037820,-500.0,0.00021917,2]
[357222412,1743921037829,-533.05,0.00021917,2]
[357222414,1743921037839,-500.0,0.00021917,2]
[357222416,1743921037848,-524.51,0.00021917,2]
[357222418,1743921037858,-500.0,0.00021917,2]
[357222420,1743921037867,-500.0,0.00021917,2]
[357222422,1743921037876,-500.0,0.00021917,2]
[357222424,1743921037886,-500.0,0.00021917,2]
[357222426,1743921037895,-500.0,0.00021917,2]
[357222428,1743921037904,-500.0,0.00021917,2]
[357222430,1743921037914,-500.0,0.00021917,2]
[357222432,1743921037923,-500.0,0.00021917,2]
[357222434,1743921037933,-500.0,0.00021917,2]
[357222436,1743921037942,-527.40985493,0.00021917,2]
[357222438,1743921037951,-500.0,0.00021917,2]
[357222440,1743921037961,-572.76,0.00021917,2]
[357222442,1743921037974,-500.0,0.00021917,2]
[357222444,1743921037983,-500.0,0.00021917,2]
[357222446,1743921037993,-500.0,0.00021917,2]
[357222449,1743921038002,-391.61400628,0.00021917,2]
[357222452,1743921038013,-200.0,0.00021917,2]
[357222454,1743921038023,-500.0,0.00021917,2]
[357222456,1743921038032,-440.91124097,0.00021917,2]
[357222472,1743921038174,-59.08875903,0.00021917,2]
[357222474,1743921038183,-500.0,0.00021917,2]
[357222476,1743921038193,-500.0,0.00021917,2]
[357222478,1743921038202,-500.0,0.00021917,2]
[357222480,1743921038211,-500.0,0.00021917,2]
[357222482,1743921038220,-549.92762833,0.00021917,2]
[357222484,1743921038230,-500.0,0.00021917,2]
[357222486,1743921038239,-500.0,0.00021917,2]
[357222488,1743921038249,-253.06157687,0.00021917,2]
[357222490,1743921038258,-333.35918418,0.00021917,2]
[357222492,1743921038267,-500.0,0.00021917,2]
[357222494,1743921038276,-500.0,0.00021917,2]
[357222496,1743921038286,-500.0,0.00021917,2]
[357222498,1743921038296,-500.0,0.00021917,2]
[357222500,1743921038305,-532.93046975,0.00021917,2]
[357222502,1743921038314,-500.0,0.00021917,2]
[357222504,1743921038323,-500.0,0.00021917,2]
[357222506,1743921038332,-500.0,0.00021917,2]
[357222508,1743921038342,-500.0,0.00021917,2]
[357222511,1743921038352,-500.0,0.00021917,2]
[357222513,1743921038361,-500.0,0.00021917,2]
[357222515,1743921038370,-500.0,0.00021917,2]
[357222517,1743921038380,-500.0,0.00021917,2]
[357222519,1743921038389,-500.0,0.00021917,2]
[357222521,1743921038398,-500.0,0.00021917,2]
[357222523,1743921038407,-500.0,0.00021917,2]
[357222525,1743921038417,-500.0,0.00021917,2]
[357222527,1743921038426,-500.0,0.00021917,2]
[357222529,1743921038436,-500.0,0.00021917,2]
[357222531,1743921038445,-500.0,0.00021917,2]
[357222533,1743921038454,-500.0,0.00021917,2]
[357222535,1743921038463,-500.0,0.00021917,2]
[357222537,1743921038475,-500.0,0.00021917,2]
[357222539,1743921038484,-500.0,0.00021917,2]
[357222540,1743921038493,-500.0,0.00021917,2]
[357222541,1743921038502,-500.0,0.00021917,2]
[357222542,1743921038512,-500.0,0.00021917,2]
[357222543,1743921038521,-500.0,0.00021917,2]
[357222544,1743921038530,-500.0,0.00021917,2]
[357222545,1743921038539,-500.0,0.00021917,2]
[357222546,1743921038549,-500.0,0.00021917,2]
[357222547,1743921038558,-440.47420309,0.00021917,2]
[357222548,1743921038567,-500.0,0.00021917,2]
[357222549,1743921038576,-500.0,0.00021917,2]
[357222550,1743921038585,-500.0,0.00021917,2]
[357222551,1743921038594,-500.0,0.00021917,2]
[357222552,1743921038603,-500.0,0.00021917,2]
[357222553,1743921038612,-500.0,0.00021917,2]
[357222555,1743921038621,-500.0,0.00021917,2]
[357222557,1743921038631,-500.0,0.00021917,2]
[357222559,1743921038640,-500.0,0.00021917,2]
[357222561,1743921038650,-500.0,0.00021917,2]
[357222563,1743921038659,-500.0,0.00021917,2]
[357222565,1743921038668,-500.0,0.00021917,2]
[357222567,1743921038677,-502.01,0.00021917,2]
[357222569,1743921038687,-500.0,0.00021917,2]
[357222571,1743921038696,-500.0,0.00021917,2]
[357222573,1743921038706,-500.0,0.00021917,2]
[357222575,1743921038715,-500.0,0.00021917,2]
[357222577,1743921038723,-500.0,0.00021917,2]
[357222579,1743921038733,-513.22129983,0.00021917,2]
[357222580,1743921038742,-616.04632118,0.00021917,2]
[357222581,1743921038751,-500.0,0.00021917,2]
[357222582,1743921038760,-500.0,0.00021917,2]
[357222583,1743921038769,-500.0,0.00021917,2]
[357222584,1743921038778,-500.0,0.00021917,2]
[357222585,1743921038787,-500.0,0.00021917,2]
[357222586,1743921038796,-500.0,0.00021917,2]
[357222587,1743921038806,-443.9979206,0.00021917,2]
[357222588,1743921038815,-500.0,0.00021917,2]
[357222589,1743921038824,-500.0,0.00021917,2]
[357222590,1743921038834,-500.0,0.00021917,2]
[357222591,1743921038843,-500.0,0.00021917,2]
[357222592,1743921038852,-500.0,0.00021917,2]
[357222593,1743921038861,-500.0,0.00021917,2]
[357222594,1743921038871,-500.0,0.00021917,2]
[357222595,1743921038880,-500.0,0.00021917,2]
[357222596,1743921038890,-500.0,0.00021917,2]
[357222597,1743921038900,-500.0,0.00021917,2]
[357222598,1743921038909,-500.0,0.00021917,2]
[357222599,1743921038919,-500.0,0.00021917,2]
[357222600,1743921038928,-500.0,0.00021917,2]
[357222601,1743921038937,-500.0,0.00021917,2]
[357222602,1743921038946,-500.0,0.00021917,2]
[357222603,1743921038956,-500.0,0.00021917,2]
[357222604,1743921038968,-500.0,0.00021917,2]
[357222605,1743921038978,-500.0,0.00021917,2]
[357222606,1743921038988,-555.22,0.00021917,2]
[357222607,1743921038997,-581.4,0.00021917,2]
[357222608,1743921039007,-500.0,0.00021917,2]
[357222609,1743921039016,-637.1952373,0.00021917,2]
[357222610,1743921039026,-500.0,0.00021917,2]
[357222611,1743921039035,-500.0,0.00021917,2]
[357222612,1743921039046,-500.0,0.00021917,2]
[357222613,1743921039057,-500.0,0.00021917,2]
[357222614,1743921039066,-500.0,0.00021917,2]
[357222615,1743921039076,-223.15448017,0.00021917,2]
[357222616,1743921039085,-500.0,0.00021917,2]
[357222617,1743921039094,-504.62119314,0.00021917,2]
[357222618,1743921039104,-500.0,0.00021917,2]
[357222619,1743921039113,-500.0,0.00021917,2]
[357222620,1743921039123,-500.0,0.00021917,2]
[357222621,1743921039132,-500.0,0.00021917,2]
[357222622,1743921039141,-500.0,0.00021917,2]
[357222623,1743921039151,-500.0,0.00021917,2]
[357222624,1743921039160,-500.0,0.00021917,2]
[357222625,1743921039171,-500.0,0.00021917,2]
[357222626,1743921039180,-507.51704205,0.00021917,2]
[357222627,1743921039189,-500.0,0.00021917,2]
[357222628,1743921039199,-500.0,0.00021917,2]
[357222629,1743921039208,-500.0,0.00021917,2]
[357222630,1743921039217,-503.1539187,0.00021917,2]
[357222631,1743921039227,-500.0,0.00021917,2]
[357222633,1743921039236,-500.0,0.00021917,2]
[357222635,1743921039245,-500.0,0.00021917,2]
[357222636,1743921039255,-500.0,0.00021917,2]
[357222637,1743921039265,-460.8797108,0.00021917,2]
[357222638,1743921039275,-500.0,0.00021917,2]
[357222639,1743921039285,-501.58199199,0.00021917,2]
[357222640,1743921039295,-500.0,0.00021917,2]
[357222641,1743921039304,-512.1852801,0.00021917,2]
[357222642,1743921039314,-500.0,0.00021917,2]
[357222643,1743921039324,-500.0,0.00021917,2]
[357222644,1743921039333,-500.0,0.00021917,2]
[357222645,1743921039343,-500.0,0.00021917,2]
[357222646,1743921039353,-500.0,0.00021917,2]
[357222647,1743921039363,-500.0,0.00021917,2]
[357222648,1743921039373,-503.5671291,0.00021917,2]
[357222649,1743921039382,-500.0,0.00021917,2]
[357222650,1743921039392,-500.0,0.00021917,2]
[357222651,1743921039401,-500.0,0.00021917,2]
[357222652,1743921039410,-500.0,0.00021917,2]
[357222653,1743921039420,-433.75033675,0.00021917,2]
[357222654,1743921039430,-550.97464896,0.00021917,2]
[357222655,1743921039439,-500.0,0.00021917,2]
[357222656,1743921039447,-500.0,0.00021917,2]
[357222660,1743921039457,-512.98782474,0.00021917,2]
[357222662,1743921039466,-500.0,0.00021917,2]
[357222664,1743921039475,-500.0,0.00021917,2]
[357222666,1743921039484,-348.85761344,0.00021917,2]
[357222667,1743921039493,-500.0,0.00021917,2]
[357222668,1743921039502,-503.83623776,0.00021917,2]
[357222669,1743921039511,-500.0,0.00021917,2]
[357222670,1743921039521,-519.86800927,0.00021917,2]
[357222671,1743921039530,-500.0,0.00021917,2]
[357222672,1743921039539,-500.0,0.00021917,2]
[357222673,1743921039548,-500.0,0.00021917,2]
[357222674,1743921039558,-603.85420577,0.00021917,2]
[357222675,1743921039567,-500.0,0.00021917,2]
[357222676,1743921039576,-510.05151646,0.00021917,2]
[357222677,1743921039585,-199.51,0.00021917,2]
[357222679,1743921039594,-510.60246501,0.00021917,2]
[357222681,1743921039603,-500.0,0.00021917,2]
[357222682,1743921039613,-507.60595668,0.00021917,2]
[357222683,1743921039622,-511.76294803,0.00021917,2]
[357222684,1743921039632,-500.0,0.00021917,2]
[357222685,1743921039642,-500.0,0.00021917,2]
[357222686,1743921039651,-220.64733941,0.00021917,2]
[357222687,1743921039667,-279.35266059,0.00021917,2]
[357222688,1743921039676,-500.0,0.00021917,2]
[357222689,1743921039685,-500.0,0.00021917,2]
[357222690,1743921039695,-500.0,0.00021917,2]
[357222691,1743921039704,-500.0,0.00021917,2]
[357222692,1743921039714,-503.95134831,0.00021917,2]
[357222693,1743921039723,-473.91471722,0.00021917,2]
[357222694,1743921039733,-500.0,0.00021917,2]
[357222695,1743921039742,-522.96368968,0.00021917,2]
[357222696,1743921039752,-500.0,0.00021917,2]
[357222697,1743921039762,-500.0,0.00021917,2]
[357222698,1743921039772,-500.0,0.00021917,2]
[357222699,1743921039782,-500.0,0.00021917,2]
[357222700,1743921039791,-563.63,0.00021917,2]
[357222701,1743921039801,-500.0,0.00021917,2]
[357222702,1743921039810,-500.0,0.00021917,2]
[357222704,1743921039819,-500.0,0.00021917,2]
[357222706,1743921039829,-500.0,0.00021917,2]
[357222707,1743921039838,-500.0,0.00021917,2]
[357222708,1743921039847,-565.56064949,0.00021917,2]
[357222709,1743921039856,-500.0,0.00021917,2]
[357222710,1743921039865,-490.0,0.00021917,2]
[357222711,1743921039875,-500.0,0.00021917,2]
[357222712,1743921039885,-213.43034153,0.00021917,2]
[357222713,1743921039894,-500.0,0.00021917,2]
[357222715,1743921039903,-500.0,0.00021917,2]
[357222718,1743921040002,-500.0,0.00021917,2]
[357222719,1743921040013,-500.0,0.00021917,2]
[357222720,1743921040023,-500.0,0.00021917,2]
[357222721,1743921040033,-344.56114505,0.00021917,2]
[357222722,1743921040045,-181.92070775,0.00021917,2]